bitfinex-derivatives/quotes_SOLF0:USTF0_20250924
["timestamp","ask_amount","ask_price","bid_price","bid_amount"]
[1758693436714,7.71,209.8,209.76,487.26]
[1758693436913,7.71,209.8,209.77,7.86]
[1758693438309,7.71,209.8,209.77,126.98]
[1758693439612,4.2883,209.81,209.77,126.98]
[1758693439812,11.9983,209.81,209.77,126.98]
[1758693440007,4.2877,209.84,209.78,7.86]
[1758693440515,4.287,209.87,209.78,7.86]
[1758693441813,4.2873,209.85,209.79,119.12]
[1758693442009,7.71,209.84,209.79,119.12]
[1758693442213,4.2873,209.85,209.79,119.12]
[1758693442612,11.9973,209.85,209.79,119.12]
[1758693442922,7.71,209.85,209.79,119.12]
[1758693443318,11.9974,209.85,209.79,119.12]
[1758693443517,7.47,209.9,209.8,7.76]
[1758693443717,2.3834717,209.89,209.8,7.76]
[1758693444017,2.3834717,209.88,209.8,7.76]
[1758693444218,7.47,209.9,209.8,7.76]
[1758693444420,2.3834042,209.89,209.8,7.76]
[1758693444620,1.1917021,209.88,209.8,7.76]
[1758693444824,4.2868,209.88,209.8,7.76]
[1758693446823,7.47,209.9,209.82,7.76]
[1758693448117,4.2859,209.93,209.82,7.76]
[1758693448319,1.19149848,209.92,209.84,7.76]
[1758693448520,11.7553,209.95,209.85,119.08]
[1758693448822,2.3828621,209.94,209.85,119.08]
[1758693449016,11.7553,209.95,209.85,119.08]
[1758693449017,2.3828621,209.93,209.85,119.08]
[1758693449222,2.3828621,209.92,209.85,119.08]
[1758693449427,11.7553,209.95,209.85,119.08]
[1758693449619,2.38289332,209.94,209.86,7.76]
[1758693449819,2.38289332,209.93,209.86,7.76]
[1758693450026,2.38289332,209.92,209.86,7.76]
[1758693450226,11.7553,209.95,209.86,7.76]
[1758693450427,2.38289332,209.94,209.86,7.76]
[1758693450628,2.38289332,209.93,209.86,7.76]
[1758693450925,1.19144666,209.92,209.86,7.76]
[1758693451125,11.7553,209.95,209.86,7.76]
[1758693451427,2.38285992,209.94,209.86,7.76]
[1758693451625,2.38285992,209.93,209.86,7.76]
[1758693451823,2.38285992,209.92,209.86,7.76]
[1758693452023,11.7553,209.95,209.86,7.76]
[1758693452226,2.38285958,209.94,209.86,7.76]
[1758693452426,2.38285958,209.93,209.86,7.76]
[1758693452625,2.38285958,209.92,209.86,7.76]
[1758693452825,11.7553,209.95,209.86,7.76]
[1758693453026,2.3828597,209.94,209.86,7.76]
[1758693453226,2.3828597,209.93,209.86,7.76]
[1758693453427,2.3828597,209.92,209.86,7.76]
[1758693453623,11.7553,209.95,209.86,7.76]
[1758693453928,2.3828597,209.94,209.86,7.76]
[1758693454127,2.3828597,209.93,209.86,7.76]
[1758693454328,2.3828597,209.92,209.86,7.76]
[1758693454632,4.2857,209.94,209.86,7.76]
[1758693454930,2.38284162,209.93,209.86,7.76]
[1758693455131,7.47,209.95,209.86,7.76]
[1758693455331,1.19132473,209.94,209.86,7.76]
[1758693455533,7.47,209.95,209.86,7.76]
[1758693455830,1.1913241,209.94,209.86,7.76]
[1758693456028,7.47,209.95,209.86,7.76]
[1758693456226,1.19132399,209.94,209.86,7.76]
[1758693456429,7.47,209.95,209.86,7.76]
[1758693456628,2.38271636,209.94,209.86,7.76]
[1758693456829,7.47,209.95,209.86,7.76]
[1758693457029,2.38271636,209.94,209.86,7.76]
[1758693457228,7.47,209.95,209.86,7.76]
[1758693457429,2.38271636,209.94,209.86,7.76]
[1758693457729,7.47,209.95,209.86,7.76]
[1758693458025,6.66821636,209.94,209.86,7.76]
[1758693458221,4.2855,209.94,209.86,7.76]
[1758693460133,1.19135851,209.93,209.86,7.76]
[1758693460332,4.2855,209.94,209.86,7.76]
[1758693461233,1.19135868,209.93,209.86,7.76]
[1758693461435,4.2855,209.94,209.86,7.76]
[1758693461627,1.19137572,209.93,209.86,7.76]
[1758693461827,4.2855,209.94,209.86,7.76]
[1758693462029,1.19137572,209.93,209.86,7.76]
[1758693462232,4.2855,209.94,209.86,7.76]
[1758693463236,7.47,209.95,209.87,7.76]
[1758693463434,2.38271644,209.94,209.87,7.76]
[1758693463633,7.47,209.95,209.87,7.76]
[1758693463834,2.38271644,209.94,209.87,7.76]
[1758693464036,7.47,209.95,209.87,7.76]
[1758693464234,2.38271644,209.94,209.87,7.76]
[1758693464436,7.47,209.95,209.87,7.76]
[1758693464632,2.3827161,209.94,209.87,7.76]
[1758693464837,7.47,209.95,209.87,7.76]
[1758693465038,2.38271644,209.94,209.87,7.76]
[1758693465234,7.47,209.95,209.87,7.76]
[1758693465436,7.47,209.95,209.88,7.76]
[1758693465629,1.19135712,209.94,209.82,3.92625137]
[1758693465836,9.85280014,209.93,209.83,7.76]
[1758693466138,7.47,209.91,209.83,7.76]
[1758693467035,66.6709,209.92,209.83,7.76]
[1758693467238,9.85295885,209.91,209.83,7.76]
[1758693467439,7.47,209.89,209.83,7.76]
[1758693468838,11.7567,209.89,209.83,7.76]
[1758693470432,4.2867,209.89,209.83,7.76]
[1758693471441,7.47,209.91,209.83,7.76]
[1758693473040,5.67196429,209.92,209.83,7.76]
[1758693473041,4.2861,209.92,209.83,9.14586429]
[1758693473337,1.19145124,209.91,209.83,9.14586429]
[1758693473534,5.47791072,209.9,209.83,128.06586429]
[1758693473736,4.2864,209.9,209.83,128.06586429]
[1758693475636,7.97,209.91,209.83,128.06586429]
[1758693476542,7.97,209.91,209.84,7.98]
[1758693476741,4.2859,209.92,209.84,7.98]
[1758693477038,1.19145118,209.91,209.84,7.98]
[1758693477244,4.2859,209.92,209.84,7.98]
[1758693477440,1.1914171,209.91,209.84,7.98]
[1758693477639,4.2859,209.92,209.84,7.98]
[1758693477840,1.19141727,209.91,209.84,7.98]
[1758693478041,4.2859,209.92,209.84,7.98]
[1758693478241,1.19141727,209.91,209.84,7.98]
[1758693478442,4.2859,209.92,209.84,7.98]
[1758693481253,1.19140806,209.91,209.84,7.98]
[1758693481454,4.2859,209.92,209.84,7.98]
[1758693481654,1.19140806,209.91,209.84,7.98]
[1758693481853,4.2859,209.92,209.84,7.98]
[1758693482052,1.19140806,209.91,209.84,7.98]
[1758693482252,4.2859,209.92,209.84,9.36586429]
[1758693482454,1.19140806,209.91,209.84,9.36586429]
[1758693482654,4.2859,209.92,209.84,9.36586429]
[1758693482854,1.19140749,209.91,209.84,9.36586429]
[1758693483153,4.2859,209.92,209.84,9.36586429]
[1758693483353,1.19140749,209.91,209.84,9.36586429]
[1758693483556,4.2859,209.92,209.84,9.36586429]
[1758693483855,1.19140749,209.91,209.84,9.36586429]
[1758693484055,4.2859,209.92,209.84,9.36586429]
[1758693484257,2.38281498,209.91,209.84,9.36586429]
[1758693484459,4.2859,209.92,209.84,9.36586429]
[1758693484650,2.38281532,209.91,209.84,9.36586429]
[1758693484850,4.2859,209.92,209.84,9.36586429]
[1758693485050,2.38281515,209.91,209.84,9.36586429]
[1758693485254,1.19140749,209.9,209.84,9.36586429]
[1758693485455,4.2859,209.92,209.84,9.36586429]
[1758693485656,2.38281532,209.91,209.84,9.36586429]
[1758693485857,1.19140766,209.9,209.84,9.36586429]
[1758693486053,7.97,209.93,209.87,7.98]
[1758693486255,2.38270928,209.92,209.87,7.98]
[1758693486453,1.19135464,209.91,209.87,7.98]
[1758693486654,4.2855,209.94,209.87,7.98]
[1758693486860,2.38270584,209.93,209.87,7.98]
[1758693487151,2.38270584,209.92,209.87,7.98]
[1758693487357,1.19135292,209.91,209.87,7.98]
[1758693487554,4.2859,209.93,209.87,7.98]
[1758693487751,2.38270618,209.92,209.87,7.98]
[1758693488057,1.19135309,209.91,209.87,7.98]
[1758693488257,4.2859,209.93,209.87,7.98]
[1758693488453,2.38270618,209.92,209.86,1.38586429]
[1758693488652,1.19135309,209.91,209.87,7.98]
[1758693488854,4.2859,209.93,209.87,7.98]
[1758693489053,2.38263872,209.92,209.87,7.98]
[1758693489353,1.19131936,209.91,209.87,118.82]
[1758693489553,7.97,209.94,209.88,7.98]
[1758693489761,2.38263996,209.93,209.88,7.98]
[1758693489961,2.38263996,209.92,209.87,118.82]
[1758693490258,1.19131998,209.91,209.88,7.98]
[1758693490458,7.97,209.95,209.88,7.98]
[1758693490659,2.38263938,209.94,209.88,7.98]
[1758693490968,2.38263938,209.93,209.88,7.98]
[1758693491259,2.38263938,209.92,209.88,7.98]
[1758693491464,1.19131969,209.91,209.88,7.98]
[1758693491659,7.97,209.95,209.88,118.8]
[1758693491962,2.38263938,209.94,209.88,118.8]
[1758693492156,10.35263938,209.93,209.88,118.8]
[1758693492352,2.38263938,209.92,209.88,118.8]
[1758693492557,1.19131969,209.91,209.9,7.98]
[1758693493764,1.19131969,209.91,209.9,8.46]
[1758693493959,7.5,210.01,209.9,8.46]
[1758693494259,4.2845,209.99,209.93,7.41]
[1758693494561,8.6910068,209.98,209.94,126.19]
[1758693494761,1.1910068,209.97,209.95,7.41]
[1758693494965,7.5,209.98,209.95,7.41]
[1758693495258,1.1909984,209.97,209.95,7.41]
[1758693495458,7.5,209.98,209.95,7.41]
[1758693495660,1.1909984,209.97,209.95,7.41]
[1758693495958,7.5,209.98,209.95,7.41]
[1758693496160,1.19099839,209.97,209.95,7.41]
[1758693496360,1.19099805,209.96,209.92,7.41]
[1758693496657,7.5,209.99,209.92,55.0]
[1758693497757,4.2852,209.96,209.92,55.0]
[1758693498066,11.7852,209.96,209.92,62.41]
[1758693498560,7.5,209.95,209.92,62.41]
[1758693498768,4.2855,209.94,209.88,8.79586429]
[1758693499062,7.5,209.93,209.89,99.67]
[1758693499260,7.5,209.93,209.9,7.41]
[1758693499764,4.2851,209.96,209.9,7.41]
[1758693500061,8.88586429,209.97,209.9,7.41]
[1758693500862,7.5,209.94,209.9,7.41]
[1758693503562,7.5,209.93,209.85,7.41]
[1758693503862,1.38586429,209.91,209.85,7.41]
[1758693504857,4.2867,209.89,209.84,7.89]
[1758693505065,4.2867,209.89,209.83,118.72]
[1758693505467,4.2867,209.89,209.84,7.89]
[1758693505673,4.2867,209.89,209.83,118.72]
[1758693505970,13.30206429,209.91,209.84,7.89]
[1758693506161,11.9162,209.91,209.84,7.89]
[1758693511264,11.9162,209.91,209.84,9.27586429]
[1758693514566,7.63,209.91,209.84,9.27586429]
[1758693514867,7.63,209.94,209.87,7.89]
[1758693516467,1.38586429,209.9,209.79,7.89]
[1758693516665,1.38586429,209.87,209.79,7.89]
[1758693516866,8.82169373,209.86,209.79,7.89]
[1758693517069,1.19169373,209.85,209.79,7.89]
[1758693519071,7.63,209.86,209.79,7.89]
[1758693519474,1.19171169,209.85,209.79,7.89]
[1758693519672,11.9173,209.86,209.79,7.89]
[1758693519874,1.19172857,209.85,209.79,7.89]
[1758693520072,2.57762051,209.84,209.76,360.22]
[1758693520271,7.63,209.83,209.77,118.64]
[1758693520568,7.63,209.81,209.77,126.53]
[1758693523570,7.63,209.81,209.77,7.89]
[1758693523766,5.67346429,209.84,209.78,118.64]
[1758693523972,9.01586429,209.89,209.79,9.27586429]
[1758693524174,1.19178687,209.88,209.79,9.27586429]
[1758693524373,1.19178687,209.87,209.79,9.27586429]
[1758693524572,9.01586429,209.89,209.79,9.27586429]
[1758693524780,4.2871,209.87,209.79,9.27586429]
[1758693525275,11.9171,209.87,209.79,9.27586429]
[1758693525871,7.63,209.87,209.79,9.27586429]
[1758693526473,2.57763122,209.86,209.76,368.11]
[1758693526679,2.57763122,209.86,209.77,118.62]
[1758693526680,7.63,209.85,209.77,118.62]
[1758693527783,4.2877,209.84,209.77,118.62]
[1758693528381,4.288,209.83,209.78,118.62]
[1758693528679,7.63,209.82,209.78,118.62]
[1758693528873,11.9181,209.82,209.78,118.62]
[1758693529076,7.63,209.81,209.78,118.62]
[1758693529383,7.63,209.81,209.78,126.51]
[1758693531276,4.2876,209.84,209.78,118.62]
[1758693531481,4.2876,209.84,209.78,126.51]
[1758693532176,7.63,209.86,209.78,126.51]
[1758693533786,4.2877,209.84,209.78,126.51]
[1758693535089,11.7679,209.83,209.77,7.6]
[1758693535282,11.7679,209.83,209.79,118.6]
[1758693535283,7.48,209.82,209.79,118.6]
[1758693536186,7.48,209.81,209.8,118.6]
[1758693536982,4.2884,209.8,209.77,7.6]
[1758693537183,11.7684,209.8,209.78,118.58]
[1758693539089,4.2884,209.8,209.78,118.58]
[1758693540690,4.2884,209.8,209.78,126.18]
[1758693542988,4.2889,209.78,209.76,360.22]
[1758693543292,4.2889,209.78,209.77,126.16]
[1758693544691,4.2883,209.81,209.77,126.16]
[1758693544893,11.7683,209.81,209.77,126.16]
[1758693545093,7.48,209.81,209.77,126.16]
[1758693545288,4.2888,209.79,209.77,126.16]
[1758693545789,74.1797,209.83,209.7,7.6]
[1758693545790,7.48,209.8,209.7,7.6]
[1758693545992,7.48,209.8,209.72,7.6]
[1758693546493,4.2888,209.78,209.72,7.6]
[1758693548796,4.2884,209.8,209.72,7.6]
[1758693553400,7.28,209.82,209.73,118.52]
[1758693553697,1.19199474,209.81,209.72,7.6]
[1758693553896,7.28,209.82,209.73,118.52]
[1758693554096,1.19199474,209.81,209.73,118.52]
[1758693554300,7.28,209.82,209.73,118.52]
[1758693554499,1.19199474,209.81,209.73,118.52]
[1758693554701,7.28,209.82,209.73,118.52]
[1758693554897,4.2889,209.78,209.74,7.35]
[1758693555104,7.28,209.79,209.71,118.5]
[1758693555903,4.2894,209.75,209.71,118.5]
[1758693556208,7.28,209.79,209.72,125.85]
[1758693556807,4.289,209.77,209.73,7.35]
[1758693557007,4.289,209.77,209.72,118.5]
[1758693557804,4.289,209.77,209.73,7.35]
[1758693558308,11.5686,209.79,209.73,7.35]
[1758693560113,8.47211201,209.78,209.75,7.35]
[1758693560315,7.28,209.78,209.75,7.35]
[1758693561214,11.5689,209.78,209.75,7.35]
[1758693562410,7.28,209.78,209.7,7.35]
[1758693562607,1.19211201,209.77,209.71,118.48]
[1758693562807,7.28,209.78,209.71,118.48]
[1758693563003,1.19213045,209.77,209.71,118.48]
[1758693563207,7.28,209.78,209.71,118.48]
[1758693563409,1.19213045,209.77,209.71,118.48]
[1758693563609,7.28,209.78,209.71,118.48]
[1758693563908,4.2896,209.75,209.72,7.97]
[1758693564311,4.2896,209.75,209.71,118.48]
[1758693564910,4.2896,209.75,209.72,7.97]
[1758693565314,4.2896,209.75,209.71,118.48]
[1758693566214,4.2896,209.75,209.72,7.97]
[1758693567616,4.2896,209.75,209.71,118.48]
[1758693568422,4.2896,209.75,209.72,118.46]
[1758693568716,4.2896,209.75,209.73,7.97]
[1758693568914,4.2896,209.75,209.72,118.46]
[1758693569110,4.2896,209.75,209.73,7.97]
[1758693569815,11.559,209.77,209.73,7.97]
[1758693571822,11.559,209.77,209.73,7.97]
[1758693572118,11.5594,209.76,209.73,7.97]
[1758693572921,4.2894,209.76,209.72,118.46]
[1758693573524,4.2888,209.78,209.73,7.97]
[1758693573718,4.2888,209.78,209.72,118.46]
[1758693575115,7.27,209.83,209.73,7.97]
[1758693575321,1.19201679,209.82,209.73,7.97]
[1758693575524,1.19201679,209.81,209.73,7.97]
[1758693575728,1.19201679,209.8,209.73,7.97]
[1758693575924,7.27,209.83,209.73,7.97]
[1758693576125,1.19201679,209.82,209.73,7.97]
[1758693576331,5.48031679,209.81,209.73,7.97]
[1758693576623,1.19201679,209.8,209.73,7.97]
[1758693577726,11.5578,209.83,209.73,7.97]
[1758693577924,1.1919738,209.82,209.73,11.89625137]
[1758693578122,1.1919738,209.81,209.74,7.97]
[1758693578323,4.2878,209.83,209.74,7.97]
[1758693578617,1.19192256,209.82,209.74,7.97]
[1758693578928,1.19192256,209.81,209.74,7.97]
[1758693579130,4.2878,209.83,209.74,7.97]
[1758693579426,1.19190578,209.82,209.74,7.97]
[1758693579630,1.19190578,209.81,209.74,7.97]
[1758693579932,4.2878,209.83,209.74,7.97]
[1758693580121,1.19190578,209.82,209.74,10.13662137]
[1758693580319,7.27,209.85,209.75,7.97]
[1758693580626,1.19181085,209.84,209.76,7.97]
[1758693580821,1.19181085,209.83,209.77,69.26]
[1758693581134,1.19181085,209.82,209.78,7.97]
[1758693581332,7.27,209.85,209.78,7.97]
[1758693581632,8.46181044,209.84,209.8,7.97]
[1758693581838,1.19181044,209.83,209.8,7.97]
[1758693582042,1.19181044,209.82,209.8,7.97]
[1758693582234,4.2876,209.84,209.8,7.97]
[1758693582534,1.19184421,209.83,209.8,7.97]
[1758693582838,11.5576,209.84,209.8,7.97]
[1758693583132,1.19182579,209.83,209.8,7.97]
[1758693583333,11.5576,209.84,209.8,7.97]
[1758693583534,1.19182579,209.83,209.8,7.97]
[1758693583737,11.5576,209.84,209.8,7.97]
[1758693583931,1.19182579,209.83,209.8,7.97]
[1758693584236,11.5576,209.84,209.8,7.97]
[1758693584438,1.19182579,209.83,209.8,7.97]
[1758693584637,11.5576,209.84,209.8,7.97]
[1758693584841,11.5579,209.82,209.76,7.97]
[1758693585136,7.27,209.81,209.79,118.34]
[1758693585333,7.27,209.81,209.79,126.31]
[1758693585539,11.5576,209.84,209.8,7.97]
[1758693585834,1.19184421,209.83,209.8,7.97]
[1758693586030,1.19184421,209.82,209.8,7.97]
[1758693586535,7.27,209.83,209.8,7.97]
[1758693587235,4.2876,209.84,209.79,118.34]
[1758693588034,4.2876,209.84,209.8,7.97]
[1758693588236,11.5576,209.84,209.8,7.97]
[1758693588635,11.5576,209.84,209.79,118.34]
[1758693588931,7.27,209.82,209.8,118.32]
[1758693590233,11.5579,209.83,209.8,126.29]
[1758693592035,4.2879,209.83,209.81,7.97]
[1758693594840,7.27,209.85,209.81,7.27]
[1758693595031,1.19183499,209.84,209.82,7.27]
[1758693595234,7.27,209.85,209.82,7.27]
[1758693595434,1.19183499,209.84,209.82,7.27]
[1758693595640,7.27,209.85,209.82,7.27]
[1758693595840,1.19183499,209.84,209.82,7.27]
[1758693596037,4.2875,209.85,209.81,21.62]
[1758693596231,1.19180123,209.84,209.83,7.27]
[1758693596430,5.67341041,209.87,209.81,21.62]
[1758693596634,1.19174826,209.86,209.82,7.27]
[1758693596831,4.287,209.87,209.82,7.27]
[1758693597043,1.19171421,209.86,209.82,7.27]
[1758693597238,4.287,209.87,209.81,21.62]
[1758693597439,1.19171421,209.86,209.83,7.27]
[1758693597649,12.117,209.87,209.83,7.27]
[1758693597941,1.19171421,209.86,209.83,7.27]
[1758693598243,12.117,209.87,209.83,7.27]
[1758693598432,1.19171421,209.86,209.83,7.27]
[1758693598636,12.117,209.87,209.83,7.27]
[1758693598936,1.19171421,209.86,209.83,7.27]
[1758693599136,12.117,209.87,209.83,7.27]
[1758693599339,1.19171421,209.86,209.83,7.27]
[1758693599544,12.117,209.87,209.83,7.27]
[1758693599743,1.19171421,209.86,209.82,7.27]
[1758693599939,12.117,209.87,209.82,7.27]
[1758693600141,1.19171421,209.86,209.83,7.27]
[1758693600345,12.117,209.87,209.82,7.27]
[1758693600542,7.83,209.85,209.78,7.27]
[1758693600742,1.19180066,209.84,209.79,38.16]
[1758693600943,7.83,209.84,209.8,7.27]
[1758693601836,4.2879,209.83,209.8,7.27]
[1758693602648,7.83,209.85,209.79,45.43]
[1758693602846,1.19180118,209.84,209.8,7.27]
[1758693603046,7.83,209.86,209.8,7.27]
[1758693603350,1.19180135,209.85,209.79,7.27]
[1758693603549,4.2879,209.83,209.8,7.27]
[1758693603841,4.2879,209.83,209.79,7.27]
[1758693604035,4.2882,209.81,209.79,7.27]
[1758693604237,4.2882,209.81,209.62,81.3272928]
[1758693604238,74.5436,209.79,209.72,7.27]
[1758693604434,2.5784323,209.78,209.72,7.27]
[1758693604646,1.38641041,209.78,209.72,7.27]
[1758693604844,7.83,209.76,209.72,7.27]
[1758693605041,7.83,209.76,209.71,7.27]
[1758693605239,1.38641041,209.8,209.71,7.27]
[1758693605441,2.38426143,209.79,209.71,7.27]
[1758693605749,1.19211613,209.78,209.72,118.2]
[1758693605947,1.38641041,209.8,209.72,118.2]
[1758693606248,2.38433358,209.79,209.72,118.2]
[1758693606447,1.19216679,209.78,209.72,118.2]
[1758693606649,1.38641041,209.8,209.72,118.2]
[1758693606849,4.289,209.77,209.72,118.2]
[1758693607941,12.119,209.77,209.73,7.27]
[1758693608244,5.27453799,209.87,209.71,7.27]
[1758693608245,4.2894,209.75,209.71,7.27]
[1758693608545,75.94461041,209.74,209.67,7.27]
[1758693608748,9.21641041,209.71,209.62,7.27]
[1758693609445,23.57479293,209.71,209.62,7.27]
[1758693609645,4.2906,209.69,209.62,7.27]
[1758693610950,7.83,209.71,209.63,1.38641041]
[1758693611154,4.2901,209.72,209.64,1.38641041]
[1758693611356,4.2901,209.72,209.65,7.27]
[1758693612649,7.83,209.71,209.65,7.27]
[1758693613254,7.53,209.69,209.65,7.27]
[1758693613752,4.2904,209.7,209.63,1.38641041]
[1758693613953,11.8204,209.7,209.63,1.38641041]
[1758693614254,7.53,209.7,209.63,1.38641041]
[1758693615942,14.65657823,209.72,209.64,7.65]
[1758693616149,13.20641041,209.73,209.64,7.65]
[1758693616950,11.82,209.73,209.64,7.65]
[1758693617148,7.53,209.73,209.65,1.38641041]
[1758693617355,7.53,209.73,209.66,7.65]
[1758693619056,4.2901,209.72,209.66,125.85]
[1758693619259,4.2901,209.72,209.66,7.65]
[1758693620465,7.53,209.69,209.62,91.04641041]
[1758693621058,7.53,209.69,209.62,98.69641041]
[1758693623462,4.2909,209.68,209.62,7.65]
[1758693623664,1.38641041,209.68,209.58,367.91]
[1758693623960,7.61,209.67,209.59,118.18]
[1758693624463,4.291,209.67,209.6,8.89641041]
[1758693624766,8.99641041,209.71,209.6,8.89641041]
[1758693625067,4.2906,209.69,209.64,7.51]
[1758693625270,7.61,209.71,209.65,118.16]
[1758693626670,7.61,209.71,209.64,8.89641041]
[1758693626966,11.9004,209.7,209.66,7.51]
[1758693627759,4.2904,209.7,209.65,7.51]
[1758693628162,4.2904,209.7,209.64,8.89641041]
[1758693628362,4.2904,209.7,209.64,127.05641041]
[1758693629777,11.9,209.73,209.65,7.51]
[1758693629970,11.9,209.73,209.67,1.38641041]
[1758693630369,11.9,209.73,209.68,7.51]
[1758693630675,11.9,209.73,209.67,8.89641041]
[1758693631078,4.2902,209.71,209.67,8.89641041]
[1758693631279,11.9002,209.71,209.67,8.89641041]
[1758693631480,7.61,209.75,209.68,7.51]
[1758693631779,4.29,209.72,209.68,7.51]
[1758693632174,11.9,209.72,209.68,7.51]
[1758693632580,11.9004,209.7,209.64,107.81641041]
[1758693632778,11.9004,209.7,209.64,106.43]
[1758693633075,11.9004,209.7,209.64,107.81641041]
[1758693633379,4.2904,209.7,209.64,107.81641041]
[1758693634579,4.2904,209.7,209.65,1.38641041]
[1758693634879,4.2904,209.7,209.66,7.51]
[1758693635081,11.9008,209.69,209.66,7.51]
[1758693635971,4.2908,209.69,209.66,7.51]
[1758693637079,4.2908,209.69,209.65,1.38641041]
[1758693637378,7.61,209.72,209.66,7.51]
[1758693637982,7.61,209.7,209.64,119.50641041]
[1758693638574,7.61,209.74,209.65,7.51]
[1758693638777,7.61,209.74,209.67,1.38641041]
[1758693638981,7.61,209.74,209.66,1.38641041]
[1758693639669,7.61,209.72,209.65,7.51]
[1758693639878,7.61,209.7,209.63,1.38641041]
[1758693640076,7.61,209.68,209.59,125.61]
[1758693640281,4.2916,209.65,209.59,126.99641041]
[1758693640581,4.2916,209.65,209.59,8.89641041]
[1758693640782,7.61,209.64,209.6,118.1]
[1758693640982,4.2916,209.65,209.61,7.51]
[1758693641180,4.2916,209.65,209.6,118.1]
[1758693641481,4.2916,209.65,209.61,7.51]
[1758693641781,11.9016,209.65,209.61,7.51]
[1758693642177,4.2918,209.63,209.59,7.51]
[1758693642380,74.3667,209.65,209.58,361.78641041]
[1758693642780,74.3667,209.65,209.57,118.1]
[1758693642781,11.9025,209.6,209.57,118.1]
[1758693643081,4.2925,209.6,209.57,125.61]
[1758693643388,11.9025,209.6,209.57,7.51]
[1758693643881,11.9025,209.6,209.55,118.1]
[1758693644081,11.9025,209.6,209.55,125.61]
[1758693644781,11.9025,209.6,209.55,7.51]
[1758693645381,4.2929,209.58,209.51,1.38641041]
[1758693645680,11.9029,209.58,209.51,118.08]
[1758693646780,4.2924,209.61,209.53,7.51]
[1758693646983,7.61,209.62,209.55,7.51]
[1758693647384,7.61,209.62,209.56,1.38641041]
[1758693647581,7.61,209.62,209.56,119.46641041]
[1758693648681,7.61,209.66,209.58,1.38641041]
[1758693648986,1.19299409,209.65,209.58,1.38641041]
[1758693649185,7.61,209.66,209.58,1.38641041]
[1758693649382,2.38598692,209.65,209.58,1.38641041]
[1758693649586,4.2914,209.65,209.58,1.38641041]
[1758693649884,7.61,209.61,209.52,7.51]
[1758693650385,11.9024,209.61,209.52,8.89641041]
[1758693651385,4.2927,209.59,209.52,8.89641041]
[1758693653590,4.2931,209.58,209.52,7.51]
[1758693655181,7.75,209.55,209.48,7.31]
[1758693655382,7.75,209.55,209.48,125.39]
[1758693656385,4.2938,209.54,209.48,7.31]
[1758693657289,4.2938,209.54,209.36,66.8475]
[1758693657290,66.7941,209.54,209.43,7.31]
[1758693657481,7.75,209.47,209.38,7.31]
[1758693657683,2.38820406,209.46,209.38,7.31]
[1758693657890,7.75,209.51,209.38,7.31]
[1758693658193,7.75,209.48,209.38,7.31]
[1758693658394,7.75,209.48,209.39,29.7]